bitfinex/quotes_ETHUSD_20240921
["timestamp","ask_amount","ask_price","bid_price","bid_amount"]
[1726880421160,1.5286,2571.3,2571.1,3.68355984]
[1726880421161,0.55,2571.3,2571.1,3.68355984]
[1726880421354,7.37,2571.4,2571.1,3.68355984]
[1726880421687,1.5286,2571.6,2571.3,3.68355984]
[1726880421887,1.5286,2571.6,2571.1,3.68355984]
[1726880422769,0.55,2571.5,2571.1,3.68355984]
[1726880425993,1.5286,2571.4,2570.8,3.68355984]
[1726880426194,0.55,2571.5,2571.0,3.68355984]
[1726880426417,0.55,2571.5,2571.0,3.76133584]
[1726880427787,0.55,2571.5,2571.0,3.68355984]
[1726880428382,0.55,2571.5,2571.1,0.07777602]
[1726880428717,0.55,2571.5,2571.0,3.76133586]
[1726880428896,0.55,2571.5,2571.0,4.40043504]
[1726880432427,0.55,2571.5,2571.0,4.32265902]
[1726880432630,0.55,2571.5,2571.0,4.40043505]
[1726880435006,0.55,2571.5,2571.0,4.32265902]
[1726880435330,0.55,2571.5,2571.0,3.68355984]
[1726880435992,0.55,2571.5,2571.0,1.69957312]
[1726880441259,1.5286,2571.4,2570.7,2.2728]
[1726880441410,1.5286,2571.2,2570.4,1.69957312]
[1726880441751,0.55,2571.3,2570.4,1.69957312]
[1726880441752,0.55,2570.7,2570.4,1.69957312]
[1726880442513,1.5286,2571.0,2570.6,1.69957312]
[1726880442753,0.55,2570.9,2570.8,1.69957312]
[1726880443436,1.5286,2571.3,2570.8,1.69957312]
[1726880443636,1.5286,2571.3,2571.2,1.69957312]
[1726880444827,0.55,2571.3,2571.2,1.69957312]
[1726880445970,0.55,2571.3,2571.0,5.95488194]
[1726880446132,0.55,2571.6,2571.2,3.68208194]
[1726880446540,0.55,2571.6,2571.0,2.2728]
[1726880446541,0.55,2571.6,2571.0,5.95488194]
[1726880447771,0.55,2571.5,2571.0,5.95488194]
[1726880448672,0.55,2571.5,2571.0,3.68208194]
[1726880449247,0.55,2571.5,2571.0,4.27757013]
[1726880449641,0.55,2571.5,2571.0,0.59548819]
[1726880449849,0.55,2571.5,2570.8,5.95488194]
[1726880451976,0.55,2571.3,2570.8,5.95488194]
[1726880452938,0.55,2571.3,2571.1,3.68208194]
[1726880453138,0.55,2571.5,2571.1,3.68208194]
[1726880454146,0.55,2571.5,2570.9,0.07777684]
[1726880454341,0.55,2571.5,2570.9,0.68104272]
[1726880454772,0.55,2571.5,2570.9,0.60326588]
[1726880454978,1.5286,2571.4,2570.9,0.60326588]
[1726880455146,0.55,2571.3,2570.9,0.60326588]
[1726880460485,0.55,2571.3,2570.8,5.95488194]
[1726880462283,0.55,2571.3,2571.1,3.68208194]
[1726880462817,0.55,2571.4,2571.1,3.68208194]
[1726880465834,1.83401308,2571.8,2571.2,3.07777663]
[1726880466138,0.60929129,2571.8,2571.7,3.68208194]
[1726880466432,7.37,2571.9,2571.7,3.68208194]
[1726880466627,1.5286,2572.1,2571.7,3.68208194]
[1726880466982,0.55,2572.0,2571.5,3.68208194]
[1726880467187,0.55,2572.0,2571.5,3.75984143]
[1726880467384,0.55,2572.0,2571.5,3.68208194]
[1726880469301,0.55,2572.0,2571.5,4.65748872]
[1726880469507,1.62532238,2572.4,2571.3,3.68208194]
[1726880469508,1.5286,2571.9,2571.3,3.68208194]
[1726880469801,12.77071041,2572.5,2571.1,2.4186]
[1726880469802,0.55,2571.6,2571.2,3.0]
[1726880470124,0.55,2571.6,2571.1,3.68208194]
[1726880471123,0.55,2571.6,2571.3,3.68208194]
[1726880471289,0.55,2571.6,2571.3,4.05029013]
[1726880472109,0.55,2571.6,2571.3,6.46889013]
[1726880472436,0.55,2571.6,2571.3,4.05029013]
[1726880472588,0.55,2571.6,2571.3,3.68208194]
[1726880474024,0.55,2571.2,2571.0,0.4643]
[1726880474227,0.55,2571.2,2571.0,4.14638194]
[1726880474428,1.22472179,2571.8,2571.0,4.14638194]
[1726880474729,2.0786,2571.7,2571.0,4.14638194]
[1726880474915,2.0786,2571.7,2571.2,3.68208194]
[1726880475309,2.0786,2571.7,2571.4,3.68208194]
[1726880475713,2.0786,2571.7,2571.0,0.4643]
[1726880475714,2.0786,2571.7,2571.2,3.68208194]
[1726880476527,0.55,2571.5,2571.0,4.14638194]
[1726880477039,0.55,2571.5,2571.3,3.68208194]
[1726880477846,1.22472179,2571.9,2571.4,2.3632]
[1726880477847,1.5286,2571.9,2571.4,2.3632]
[1726880478025,1.5286,2571.9,2571.7,3.68208194]
[1726880478518,1.5286,2572.1,2571.7,3.68208194]
[1726880479816,0.55,2572.0,2571.7,3.68208194]
[1726880482124,0.55,2572.0,2571.7,4.10449666]
[1726880482331,1.5286,2572.3,2571.9,3.68208194]
[1726880482540,3.05814262,2572.5,2571.9,3.68208194]
[1726880482541,1.43282024,2572.5,2572.2,3.68208194]
[1726880482893,0.41742526,2572.5,2572.2,3.68208194]
[1726880483095,0.41742526,2572.5,2572.4,3.68208194]
[1726880483445,0.41742526,2572.5,2572.2,3.68208194]
[1726880483815,0.55,2572.4,2572.2,3.68208194]
[1726880484334,0.55,2572.4,2572.0,3.68208194]
[1726880487552,0.55,2572.4,2572.2,3.68208194]
[1726880490103,0.41742526,2572.5,2572.2,4.05029013]
[1726880490321,0.41742526,2572.5,2572.4,5.96688194]
[1726880491365,0.41742526,2572.5,2572.2,4.05029013]
[1726880491510,0.55,2572.4,2572.0,3.68208194]
[1726880492514,0.55,2572.4,2571.9,2.2848]
[1726880493125,0.55,2572.4,2572.0,3.68208194]
[1726880493824,0.55,2572.2,2571.8,3.68208194]
[1726880494933,0.55,2572.2,2572.0,3.68208194]
[1726880495513,0.55,2572.4,2572.0,3.68208194]
[1726880495862,0.55,2572.4,2572.1,2.2986]
[1726880496513,0.55,2572.4,2572.1,2.1486]
[1726880496810,0.55,2572.4,2572.0,3.68208194]
[1726880498552,0.55,2572.4,2572.2,3.68208194]
[1726880502097,0.55,2572.4,2572.1,3.68208194]
[1726880502250,0.55,2572.4,2571.9,3.68208194]
[1726880502486,0.55,2572.4,2572.0,0.07775029]
[1726880503004,0.55,2572.4,2571.9,3.75983223]
[1726880503201,0.55,2572.4,2571.9,3.68208194]
[1726880503506,0.55,2572.2,2571.9,3.68208194]
[1726880510042,0.55,2572.2,2572.1,1.69819434]
[1726880520393,2.09602526,2572.5,2572.1,1.69819434]
[1726880522265,0.55,2572.4,2572.1,1.69819434]
[1726880522994,0.55,2572.4,2571.2,5.4316]
[1726880523164,0.55,2572.2,2571.8,1.69819434]
[1726880523771,0.55,2572.2,2572.0,1.69819434]
[1726880525804,1.6786,2572.3,2572.0,1.69819434]
[1726880525972,0.55,2572.4,2572.2,1.69819434]
[1726880526357,1.64214705,2572.5,2572.2,1.69819434]
[1726880526553,0.41742526,2572.5,2572.4,1.69819434]
[1726880527799,0.96742526,2572.5,2572.2,1.69819434]
[1726880528101,0.55,2572.4,2572.2,1.69819434]
[1726880529842,0.41742526,2572.5,2572.3,2.3595]
[1726880530135,0.41742526,2572.5,2572.4,1.69819434]
[1726880531077,0.41742526,2572.5,2572.4,4.13542775]
[1726880531639,0.0377125,2572.9,2572.5,2.3595]
[1726880531775,0.0377125,2572.9,2572.8,1.69819434]
[1726880534714,0.0377125,2572.9,2572.8,4.09249434]
[1726880534890,0.0377125,2573.7,2573.5,1.30849434]
[1726880535224,0.0377125,2573.7,2573.6,2.47200646]
[1726880536020,0.0377125,2573.7,2573.6,6.06829917]
[1726880541208,0.0377125,2574.4,2573.7,5.3492]
[1726880541564,0.0377125,2574.4,2574.3,6.02319917]
[1726880541845,0.0377125,2574.4,2573.9,6.02319917]
[1726880542047,0.0377125,2574.4,2574.1,3.67399917]
[1726880545653,1.6786,2574.3,2573.7,4.28082909]
[1726880545803,1.6786,2574.3,2573.9,3.67399917]
[1726880546159,1.6786,2574.3,2574.1,3.67399917]
[1726880546804,1.6786,2574.3,2573.9,3.67399917]
[1726880552555,0.55,2574.2,2573.5,2.3492]
[1726880552761,0.55,2574.0,2573.3,3.67399917]
[1726880553112,0.55,2574.0,2573.2,2.38769873]
[1726880553319,7.37,2574.3,2572.9,0.45437892]
[1726880553320,0.55,2573.8,2573.1,3.67399917]
[1726880553553,0.55,2573.8,2573.5,3.67399917]
[1726880555240,1.6786,2573.9,2573.7,3.67399917]
[1726880555616,7.37,2574.3,2573.7,3.67399917]
[1726880555865,1.6786,2574.2,2573.9,3.67399917]
[1726880556018,0.0377125,2574.4,2574.1,3.67399917]
[1726880556019,1.7163125,2574.4,2574.1,3.67399917]
[1726880556219,1.7163125,2574.4,2573.9,3.67399917]
[1726880557541,0.55,2574.3,2573.9,3.67399917]
[1726880557728,0.55,2574.3,2573.5,3.67399917]
[1726880557929,1.6786,2574.2,2573.5,4.58066909]
[1726880558256,0.55,2574.1,2573.5,3.67399917]
[1726880559235,1.6786,2574.0,2573.3,3.67399917]
[1726880560116,0.55,2573.9,2573.3,3.67399917]
[1726880563436,1.6786,2573.8,2573.3,3.67399917]
[1726880563836,1.6786,2573.6,2572.9,6.06669917]
[1726880564070,3.0,2574.1,2572.9,6.06669917]
[1726880564071,1.6786,2573.4,2572.9,3.67399917]
[1726880565261,0.55,2573.3,2572.9,3.67399917]
[1726880566887,0.55,2573.3,2572.7,6.06669917]
[1726880567873,0.55,2573.3,2572.7,3.67399917]
[1726880568185,0.55,2573.3,2572.9,3.67399917]
[1726880568955,1.6786,2573.2,2572.7,3.67399917]
[1726880570406,0.55,2573.1,2572.7,3.67399917]
[1726880571482,1.6786,2573.2,2572.7,4.28844226]
[1726880571676,1.6786,2573.2,2572.9,3.67399917]
[1726880572606,1.6786,2573.2,2572.7,4.36617401]
[1726880572985,1.6786,2573.2,2572.9,3.67399917]
[1726880578415,1.6786,2573.2,2572.7,3.67399917]
[1726880578756,1.6786,2573.2,2572.9,3.67399917]
[1726880579529,1.6786,2573.5,2573.1,3.67399917]
[1726880580983,1.6786,2573.9,2573.3,3.67399917]
[1726880581252,7.37,2574.0,2573.8,3.67399917]
[1726880581552,1.6786,2574.1,2573.8,3.67399917]
[1726880581772,1.6786,2574.1,2574.0,3.67399917]
[1726880581928,0.45647037,2574.2,2574.0,3.67399917]
[1726880582259,0.45647037,2574.2,2573.8,3.67399917]
[1726880582441,0.45647037,2574.2,2574.0,3.67399917]
[1726880584749,0.45647037,2574.2,2573.8,6.12099917]
[1726880586736,1.6786,2574.0,2573.4,3.67399917]
[1726880587060,0.55,2573.9,2573.2,6.12099917]
[1726880587225,0.55,2573.9,2573.2,6.73309909]
[1726880587618,1.6786,2573.8,2573.2,0.61209992]
[1726880587824,1.6786,2573.8,2573.2,3.67399917]
[1726880588689,0.55,2573.7,2573.0,3.67399917]
[1726880590065,1.6786,2573.6,2573.0,3.67399917]
[1726880590281,1.6786,2573.6,2572.8,2.447]
[1726880590282,1.6786,2573.6,2572.8,6.12099917]
[1726880591084,0.55,2573.5,2572.8,3.67399917]
[1726880591537,0.55,2573.5,2572.8,4.26716909]
[1726880591743,0.55,2573.5,2573.0,3.67399917]
[1726880591952,1.6786,2573.6,2573.2,3.67399917]
[1726880592196,1.6786,2573.6,2573.0,3.67399917]
[1726880592402,0.55,2573.5,2573.0,3.67399917]
[1726880592720,1.6786,2573.4,2572.8,3.67399917]
[1726880593030,1.6786,2573.4,2572.8,4.34489078]
[1726880594317,0.55,2573.3,2572.8,3.67399917]
[1726880595494,0.55,2573.3,2572.6,5.93169917]
[1726880595700,1.6786,2573.2,2572.6,3.67399917]
[1726880596307,1.6786,2573.2,2572.6,4.56976909]
[1726880597829,1.6786,2573.2,2572.8,3.67399917]
[1726880599606,1.6786,2573.2,2572.6,4.56976909]
[1726880599927,1.6786,2573.2,2572.6,4.64749657]
[1726880600133,1.6786,2573.2,2572.8,3.67399917]
[1726880600363,1.6786,2573.2,2572.8,3.75172577]
[1726880600569,1.6786,2573.2,2572.8,3.67399917]
[1726880600728,1.6786,2573.2,2572.8,3.75172628]
[1726880600928,1.6786,2573.2,2572.8,4.2164759]
[1726880601869,1.6786,2573.2,2572.8,4.13874879]
[1726880602179,1.6786,2573.2,2572.8,3.67399917]
[1726880606913,1.6786,2573.2,2572.6,3.67399917]
[1726880611341,1.83356658,2573.5,2572.0,3.67399917]
[1726880611342,1.6786,2572.8,2572.0,3.67399917]
[1726880612106,0.55,2572.7,2572.2,3.67399917]
[1726880613856,0.55,2572.7,2571.9,2.4281]
[1726880613857,1.6786,2572.6,2572.0,3.67399917]
[1726880614818,1.6786,2572.6,2572.0,4.28420909]
[1726880615018,1.6786,2572.6,2572.2,3.67399917]
[1726880617277,1.6786,2572.6,2572.0,4.28420909]
[1726880619667,0.55,2572.7,2572.0,4.28420909]
[1726880619668,2.2286,2573.0,2572.4,3.67399917]
[1726880619865,2.2286,2573.0,2572.5,0.07773595]
[1726880620252,2.2286,2573.0,2572.4,3.75173667]
[1726880620656,2.2286,2573.0,2572.4,3.67399917]
[1726880620900,2.2286,2573.0,2572.0,1.0671505]
[1726880620901,1.6786,2572.9,2572.2,3.67399917]
[1726880621501,1.6786,2572.7,2572.2,3.67399917]
[1726880625577,1.6786,2572.7,2572.2,4.42075054]
[1726880626578,1.6786,2572.7,2572.4,3.67399917]
[1726880627802,2.2286,2573.0,2572.4,3.67399917]
[1726880628394,2.2286,2573.0,2572.4,3.75173965]
[1726880628809,2.2286,2573.0,2572.4,3.67399917]
[1726880629993,2.2286,2573.0,2572.2,3.75173977]
[1726880629994,1.6786,2572.9,2572.2,3.75173977]
[1726880630405,1.6786,2572.9,2572.2,3.67399917]
[1726880631351,1.6786,2572.7,2572.2,3.67399917]
[1726880634469,1.6786,2572.7,2572.2,4.28976318]
[1726880635964,1.6786,2572.7,2572.2,1.6976588]
[1726880637937,1.6786,2572.7,2572.4,1.6976588]
[1726880641776,1.6786,2572.7,2572.2,1.6976588]
[1726880642073,1.6786,2572.7,2571.4,0.45694058]
[1726880642074,1.6786,2572.7,2571.6,2.2733]
[1726880642278,1.6786,2572.5,2571.9,1.6976588]
[1726880642632,1.6786,2572.5,2571.7,1.6976588]
[1726880642877,1.6786,2572.3,2571.7,1.6976588]
[1726880643446,1.6786,2572.3,2571.9,1.6976588]
[1726880643986,1.6786,2572.3,2571.9,3.6795021]
[1726880644149,1.6786,2572.3,2571.7,3.6795021]
[1726880645333,0.55,2572.2,2571.7,3.6795021]
[1726880645536,0.55,2572.2,2571.5,3.6795021]
[1726880645537,1.6786,2572.1,2571.5,3.6795021]
[1726880645855,1.6786,2572.1,2571.5,4.27855356]
[1726880650423,1.6786,2572.1,2571.5,3.6795021]
[1726880651680,1.6786,2572.1,2571.7,3.6795021]
[1726880658234,1.6786,2572.1,2571.5,3.75726298]
[1726880659794,1.6786,2572.1,2571.5,3.6795021]
[1726880663128,2.28771781,2572.1,2571.5,3.6795021]
[1726880663925,2.28771781,2572.1,2571.7,1.69861466]
[1726880669483,1.6786,2572.0,2571.7,1.69861466]
[1726880672600,1.6786,2571.8,2571.3,0.0377125]
[1726880672899,1.6786,2571.6,2571.3,0.0377125]
[1726880675499,1.6786,2571.4,2571.3,0.0377125]
[1726880676796,2.2286,2571.4,2571.3,0.0377125]
[1726880678429,6.85392238,2571.4,2571.3,0.0377125]
[1726880678831,6.85595197,2571.4,2571.3,0.0377125]
[1726880679136,5.2286,2571.4,2571.3,0.0377125]
[1726880679325,6.44842243,2571.4,2571.3,0.0377125]
[1726880680131,5.2286,2571.4,2571.3,0.0377125]
[1726880680520,6.44842243,2571.4,2571.3,0.0377125]
[1726880681320,6.92721466,2571.4,2571.3,0.0377125]
[1726880681920,5.2286,2571.4,2571.3,0.0377125]
[1726880682432,2.2286,2571.4,2571.3,0.0377125]
[1726880686541,1.6786,2571.4,2571.3,0.0377125]
[1726880687901,2.2286,2571.4,2571.3,0.0377125]
[1726880689044,0.55,2571.6,2571.3,0.0377125]
[1726880702723,0.40368975,2572.0,2571.5,2.3126]
[1726880702916,9.65771781,2572.1,2571.6,1.69861466]
[1726880703622,9.65771781,2572.1,2571.3,2.3503125]
[1726880703924,3.92721466,2571.8,2571.3,0.0377125]
[1726880704320,2.2286,2571.8,2571.3,0.0377125]
[1726880704889,1.6786,2571.7,2571.3,0.0377125]
[1726880705083,0.55,2571.6,2571.3,0.0377125]
[1726880706350,0.55,2571.7,2571.3,0.0377125]
[1726880706516,0.55,2571.4,2571.3,0.0377125]
[1726880712446,1.21967064,2571.7,2571.3,0.0377125]
[1726880712447,0.55,2571.6,2571.3,0.0377125]
[1726880713238,0.40606397,2571.8,2571.4,1.69861466]
[1726880713438,0.40606397,2571.8,2571.6,1.69861466]
[1726880713976,7.97911781,2572.1,2571.6,1.69861466]
[1726880714350,0.60911781,2572.1,2571.6,1.69861466]
[1726880714551,0.55,2572.0,2571.5,2.3518]
[1726880714939,0.60911781,2572.1,2571.6,1.69861466]
[1726880716487,2.08885526,2572.2,2571.6,1.69861466]
[1726880716488,0.41025526,2572.2,2572.0,4.14981466]
[1726880716948,0.41025526,2572.2,2572.1,2.4512]
[1726880717599,0.41025526,2572.2,2572.1,2.52895061]
[1726880718087,0.41025526,2572.2,2572.1,6.20740081]
[1726880718403,0.41025526,2572.2,2572.1,6.82814089]
[1726880718687,0.41025526,2572.2,2572.1,3.07194008]
[1726880718902,0.41025526,2572.2,2571.7,2.4512]
[1726880719542,0.41025526,2572.2,2571.8,3.6784502]
[1726880719745,0.41025526,2572.2,2571.9,2.4512]
[1726880719941,0.40598557,2572.7,2572.1,2.4512]
[1726880720188,0.60903772,2572.9,2572.5,3.6784502]
[1726880720388,0.60903772,2572.9,2572.5,3.75618728]
[1726880721652,0.60903772,2572.9,2572.5,3.6784502]
[1726880723292,0.60903772,2572.9,2572.4,2.4512]
[1726880723976,0.60903772,2572.9,2572.4,2.52893718]
[1726880724183,0.60903772,2572.9,2572.4,2.4512]
[1726880724480,0.55,2572.8,2572.4,2.4512]
[1726880724885,0.55,2572.8,2572.1,2.4512]
[1726880727361,0.55,2572.6,2571.8,6.1296502]
[1726880728100,0.55,2572.4,2571.8,6.1296502]
[1726880728315,0.55,2572.6,2571.8,6.1296502]
[1726880728487,0.55,2572.6,2572.0,3.6784502]
[1726880731102,7.97903772,2572.9,2572.2,3.6784502]
[1726880731257,0.55,2572.8,2572.1,2.4535]
[1726880732300,0.15186205,2572.7,2572.1,2.4535]
[1726880733525,1.6786,2572.5,2571.9,3.06646502]
[1726880733731,1.6786,2572.5,2571.9,2.4535]
[1726880734029,0.15206441,2572.4,2571.9,2.4535]
[1726880734819,0.55,2572.3,2571.8,3.6784502]
[1726880735094,0.15198453,2572.2,2571.8,3.6784502]
[1726880735287,0.55,2572.4,2571.8,3.6784502]
[1726880735532,0.15193117,2572.1,2571.8,3.6784502]
[1726880735786,0.55,2572.4,2571.8,4.27635522]
[1726880735950,0.1519024,2572.0,2571.8,4.27635522]
[1726880736112,0.55,2572.4,2571.8,4.27635522]
[1726880736295,0.15187363,2571.9,2571.8,3.6784502]
[1726880736500,0.55,2572.4,2571.8,3.6784502]
[1726880736847,0.15187587,2571.9,2571.8,3.6784502]
[1726880737059,0.55,2572.4,2571.8,3.6784502]
[1726880737213,0.15171745,2571.9,2571.8,3.6784502]
[1726880737413,0.55,2572.4,2571.8,3.6784502]
[1726880737629,0.15187587,2571.9,2571.8,3.6784502]
[1726880738130,0.55,2572.4,2571.8,4.27635522]
[1726880738334,0.15172416,2571.9,2571.8,3.6784502]
[1726880738543,0.55,2572.4,2571.8,3.6784502]
[1726880738718,7.37,2572.6,2572.0,3.6784502]
[1726880738918,7.37,2572.6,2572.1,2.3006]
[1726880738919,0.55,2572.6,2572.1,2.3006]
[1726880739119,2.28763772,2572.9,2572.2,3.6784502]
[1726880740060,2.28763772,2572.9,2572.1,2.3006]
[1726880740859,0.55,2572.8,2572.1,2.3006]
[1726880742863,0.55,2572.8,2572.1,2.3783476]
[1726880743164,0.55,2572.8,2572.1,2.3006]
[1726880744866,0.15211488,2572.7,2572.1,2.3006]
[1726880750183,0.15211488,2572.7,2572.1,2.37834772]
[1726880750339,0.15211488,2572.7,2572.1,2.98402751]
[1726880750537,0.15211488,2572.7,2572.1,2.98402748]
[1726880750950,0.15211488,2572.7,2572.1,2.90627979]
[1726880751175,0.15211488,2572.7,2572.1,2.3006]
[1726880752644,1.6786,2572.6,2572.1,2.3006]
[1726880752842,0.15201472,2572.5,2572.1,2.3006]
[1726880753783,0.15201472,2572.5,2571.8,3.6784502]
[1726880753981,0.55,2572.4,2571.8,6.0348502]
[1726880754538,0.70197702,2572.4,2571.8,6.0348502]
[1726880757383,0.70197702,2572.4,2571.8,6.56910138]
[1726880759963,0.70197702,2572.4,2572.1,1.69823662]
[1726880760382,1.6786,2572.3,2571.6,2.2968]
[1726880760590,1.6786,2572.1,2571.4,2.2968]
[1726880760812,1.6786,2571.9,2571.2,2.2968]
[1726880760948,1.6786,2571.9,2571.3,1.73594912]
[1726880761297,0.15180773,2571.8,2571.5,1.69823662]
[1726880762843,0.15180773,2571.8,2571.7,1.69823662]
[1726880763279,0.55,2572.0,2571.7,1.69823662]
[1726880763540,0.15156816,2571.9,2571.7,1.69823662]
[1726880763979,0.15156816,2571.9,2571.6,5.97728317]
[1726880768696,0.55,2571.7,2571.3,0.0377125]
[1726880768999,1.6786,2571.8,2571.3,0.0377125]
[1726880769000,0.55,2571.5,2571.3,0.0377125]
[1726880769363,0.15063878,2571.4,2571.3,0.0377125]
[1726880771468,2.37923878,2571.4,2571.3,0.0377125]
[1726880772176,3.60146139,2571.4,2571.3,0.0377125]
[1726880772409,3.60146139,2571.4,2569.8,2.4120125]
[1726880772410,0.55,2571.2,2569.8,2.4120125]
[1726880772582,0.55,2570.8,2569.8,2.65321375]
[1726880772775,0.55,2570.6,2569.8,2.65321375]
[1726880773303,1.82874954,2570.7,2569.8,6.33369692]
[1726880773304,0.55,2570.4,2569.8,6.33369692]
[1726880773522,0.15003431,2570.3,2569.8,6.33369692]
[1726880773880,0.55,2570.4,2569.8,6.33369692]
[1726880774104,0.14989754,2570.3,2569.9,0.63336969]
[1726880774320,0.55,2570.6,2569.9,0.63336969]
[1726880774502,0.14986873,2570.2,2569.9,0.63336969]
[1726880774707,0.55,2570.6,2569.9,0.63336969]
[1726880774905,0.55,2570.4,2569.8,6.33369692]
[1726880775077,0.14989754,2570.3,2569.8,6.33369692]
[1726880775280,0.55,2570.6,2569.8,6.33369692]
[1726880775481,0.55,2570.4,2569.8,6.33369692]
[1726880775725,0.14989754,2570.3,2569.8,6.33369692]
[1726880775903,0.55,2570.6,2569.9,0.63336969]
[1726880776107,0.55,2570.4,2569.9,0.63336969]
[1726880776312,0.14989754,2570.3,2569.9,0.63336969]
[1726880779181,0.14989754,2570.3,2570.0,3.68048317]
[1726880779486,0.1498194,2570.2,2570.0,3.68048317]
[1726880779714,1.6786,2570.2,2569.8,0.0377125]
[1726880779883,0.69979058,2570.1,2569.8,0.0377125]
[1726880781035,0.55,2569.9,2569.8,0.0377125]
[1726880781383,2.37839604,2569.9,2569.8,0.0377125]
[1726880783676,6.05887921,2569.9,2569.8,0.0377125]
[1726880783891,2.37839604,2569.9,2569.8,0.0377125]
[1726880787776,6.05887921,2569.9,2569.8,0.0377125]
[1726880789490,9.05887921,2569.9,2569.8,0.0377125]
[1726880790243,9.4636757,2569.9,2569.8,0.0377125]
[1726880791588,5.78319253,2569.9,2569.8,0.0377125]
[1726880792187,9.4636757,2569.9,2569.8,0.0377125]
[1726880793006,11.7986757,2569.9,2569.8,0.0377125]
[1726880793143,9.4636757,2569.9,2569.8,0.0377125]
[1726880793544,13.3548757,2569.9,2569.8,0.0377125]
[1726880793774,15.6898757,2569.9,2569.8,0.0377125]
[1726880794188,11.7986757,2569.9,2569.8,0.0377125]
[1726880794852,9.4636757,2569.9,2569.8,0.0377125]
[1726880795996,9.86984548,2569.9,2569.8,0.0377125]
[1726880799768,19.98724548,2569.9,2569.8,0.0377125]
[1726880799930,16.09604548,2569.9,2569.8,0.0377125]
[1726880801152,19.98724548,2569.9,2569.8,0.0377125]
[1726880802118,16.09604548,2569.9,2569.8,0.0377125]
[1726880802612,19.98724548,2569.9,2569.8,0.0377125]
[1726880803857,20.0550145,2569.9,2569.8,0.0377125]
[1726880804832,16.1638145,2569.9,2569.8,0.0377125]
[1726880805419,20.0550145,2569.9,2569.8,0.0377125]
[1726880805620,16.1638145,2569.9,2569.8,0.0377125]
[1726880805828,20.0550145,2569.9,2569.8,0.0377125]
[1726880806341,16.1638145,2569.9,2569.8,0.0377125]
[1726880806735,20.0550145,2569.9,2569.8,0.0377125]
[1726880807671,16.1638145,2569.9,2569.8,0.0377125]
[1726880807856,3.0,2569.8,2569.0,2.000625]
[1726880808033,4.23048317,2569.7,2569.0,2.000625]
[1726880808232,0.55,2569.5,2569.0,2.000625]
[1726880808433,0.55,2569.3,2569.0,2.000625]
[1726880808741,0.55,2569.1,2569.0,2.000625]
[1726880809052,0.14851367,2569.1,2569.0,2.000625]
[1726880809258,0.55,2569.0,2568.3,3.71819567]
[1726880809432,0.55,2569.0,2568.3,4.09001524]
[1726880809727,0.55,2568.8,2568.3,4.09001524]
[1726880809933,0.1483983,2568.7,2568.3,4.09001524]
[1726880810132,0.55,2568.8,2568.3,4.09001524]
[1726880810329,0.1483983,2568.7,2568.3,4.09001524]
[1726880810555,0.55,2568.8,2568.4,0.40900152]
[1726880810786,0.148477,2568.7,2568.4,0.40900152]
[1726880810933,0.148477,2568.7,2568.5,2.4097]
[1726880811129,0.55,2568.8,2568.5,2.4097]
[1726880811335,0.14839332,2568.7,2568.5,2.4097]
[1726880811563,0.55,2568.8,2568.5,2.4097]
[1726880811779,0.14836448,2568.6,2568.5,2.4097]
[1726880811979,0.55,2568.6,2568.5,2.4097]
[1726880812334,0.69836448,2568.6,2568.5,2.4097]
[1726880817675,0.69836448,2568.6,2568.3,2.3463125]
[1726880817676,0.55,2568.5,2568.3,2.3463125]
[1726880818061,0.69626105,2568.4,2568.3,2.3463125]
[1726880824599,0.14626105,2568.4,2568.3,2.3463125]
[1726880824752,0.14626105,2568.4,2568.3,6.26142692]
[1726880824953,0.55,2568.9,2568.4,2.3086]
[1726880825189,0.55,2568.7,2568.4,2.3086]
[1726880825598,0.14623124,2568.6,2568.4,2.3086]
[1726880826854,0.55,2568.5,2568.4,2.3086]
[1726880827394,0.69620239,2568.5,2568.4,2.3086]
[1726880835878,0.69620239,2568.5,2568.3,0.0377125]
[1726880836404,0.69620239,2568.5,2568.3,1.74140092]
[1726880836607,0.69620239,2568.5,2568.3,0.0377125]
[1726880837923,0.14620239,2568.5,2568.4,2.4391]
[1726880838309,7.37,2569.0,2568.4,2.4391]
[1726880838512,0.1256256,2568.5,2568.4,2.4391]
[1726880839137,3.21586999,2569.1,2568.4,2.4391]
[1726880839431,1.9928,2569.1,2568.4,2.4391]
[1726880839718,0.55,2568.9,2568.4,2.4391]
[1726880840229,0.55,2568.7,2568.4,2.4391]
[1726880840736,0.12569693,2568.6,2568.4,2.4391]
[1726880841466,0.12569693,2568.6,2568.3,0.0377125]
[1726880841634,0.55,2568.5,2568.3,2.4768125]
[1726880842059,0.12564144,2568.4,2568.3,2.4768125]
[1726880842562,0.67564144,2568.4,2568.3,0.0377125]
[1726880844770,1.89871143,2568.4,2568.3,0.0377125]
[1726880846857,0.67564144,2568.4,2568.3,0.0377125]
[1726880848259,1.89871143,2568.4,2568.3,0.0377125]
[1726880848491,0.67564144,2568.4,2568.3,0.0377125]
[1726880848897,1.89871143,2568.4,2568.3,0.0377125]
[1726880849059,2.30640142,2568.4,2568.3,0.0377125]
[1726880849953,4.29920142,2568.4,2568.3,0.0377125]
[1726880850306,4.70401766,2568.4,2568.3,0.0377125]
[1726880850787,8.39528212,2568.4,2568.3,0.0377125]
[1726880851106,8.38565578,2568.4,2568.3,0.0377125]
[1726880851395,4.69439132,2568.4,2568.3,0.0377125]
[1726880851599,1.7461863,2568.4,2568.3,0.0377125]
[1726880851763,0.12564144,2568.4,2568.3,0.0377125]
[1726880851965,3.20852862,2568.7,2568.3,0.0377125]
[1726880852299,0.11860501,2568.6,2568.3,0.0377125]
[1726880852715,0.11860501,2568.6,2568.3,2.4023125]
[1726880852886,0.11860501,2568.6,2567.5,0.0377125]
[1726880852887,0.55,2568.5,2567.8,2.3646]
[1726880853091,0.55,2568.5,2567.8,6.29232446]
[1726880853298,0.55,2568.3,2567.9,2.3646]
[1726880853670,0.11839219,2568.2,2567.9,2.3646]
[1726880854103,0.55,2568.5,2567.9,2.3646]
[1726880854282,0.11836333,2568.1,2567.9,2.3646]
[1726880854483,0.55,2568.5,2567.9,2.3646]
[1726880854777,0.55,2568.5,2568.2,3.69126446]